fUSD/lending_fUSD_20240301
["ID","MTS","AMOUNT","RATE_DAILY","PERIOD"]
[315913709,1709279665837,-150.0,0.00022275,2]
[315913710,1709279665866,-413.8,0.00022284,2]
[315913711,1709279665895,-1000.0,0.00022299,2]
[315913712,1709279665923,-1006.3572,0.00022299,2]
[315913713,1709279665951,-152.56,0.00022305,2]
[315913714,1709279665984,-150.0,0.00022311,2]
[315913715,1709279666013,-424.53,0.00022311,2]
[315913716,1709279666041,-345.12,0.00022311,2]
[315913717,1709279666070,-161.25,0.00022311,2]
[315913718,1709279666097,-150.0,0.00022311,2]
[315913719,1709279666126,-168.29,0.00022312,2]
[315913720,1709279666156,-428.44,0.00022312,2]
[315913721,1709279666186,-344.94,0.00022312,2]
[315913722,1709279666216,-155.34,0.00022356,2]
[315913723,1709279666242,-687.9735948,0.00022365,2]
[315913724,1709279666268,-1102.28072992,0.00022376,6]
[315913725,1709279666296,-1269.61,0.00022379,2]
[315913726,1709279666325,-192.52,0.00022379,2]
[315913727,1709279666359,-9058.20356252,0.00022385,2]
[315913728,1709279666386,-200.0,0.00022387,2]
[315913729,1709279666412,-67279.18888737,0.00022398,2]
[315913730,1709279666437,-308.27215195,0.00022398,2]
[315913731,1709279666463,-2511.24288183,0.00022398,2]
[315913732,1709279666490,-202.91723297,0.00022398,2]
[315913733,1709279666517,-5519.82000945,0.00022398,2]
[315913734,1709279666543,-1000.0,0.00022399,2]
[315913735,1709279666572,-1000.0,0.00022399,2]
[315913736,1709279666599,-15762.96804479,0.000224,2]
[315913737,1709279666628,-161.25,0.00022413,2]
[315913738,1709279666655,-272.03,0.00022419,2]
[315913739,1709279666684,-152.56,0.00022434,2]
[315913740,1709279666712,-600.0,0.00022446,2]
[315913741,1709279666740,-89611.2120027,0.00022449,2]
[315913742,1709279666768,-1000.0,0.00022449,3]
[315913743,1709279666795,-1000.0,0.00022449,3]
[315913744,1709279666825,-1000.0,0.00022449,3]
[315913745,1709279666853,-1000.0,0.00022449,3]
[315913746,1709279666880,-1000.0,0.00022449,3]
[315913747,1709279666907,-1000.0,0.00022449,3]
[315913748,1709279666935,-1000.0,0.00022449,3]
[315913749,1709279666962,-1000.0,0.00022449,3]
[315913750,1709279666990,-1000.0,0.00022449,3]
[315913751,1709279667017,-1000.0,0.00022449,3]
[315913752,1709279667043,-1000.0,0.00022449,3]
[315913753,1709279667070,-1000.0,0.00022449,3]
[315913754,1709279667096,-1000.0,0.00022449,3]
[315913755,1709279667123,-1000.0,0.00022449,3]
[315913756,1709279667149,-1000.0,0.00022449,3]
[315913757,1709279667176,-1000.0,0.00022449,3]
[315913758,1709279667202,-456.0336,0.00022449,2]
[315913759,1709279667230,-1000.0,0.00022449,3]
[315913760,1709279667257,-1000.0,0.00022449,3]
[315913761,1709279667284,-1000.0,0.00022449,3]
[315913762,1709279667311,-1000.0,0.00022449,3]
[315913763,1709279667338,-1000.0,0.00022449,3]
[315913764,1709279667364,-7092.45645197,0.00022449,3]
[315913765,1709279667392,-1000.0,0.00022449,3]
[315913766,1709279667418,-1000.0,0.00022449,3]
[315913767,1709279667443,-5617.4514419,0.00022449,3]
[315913768,1709279667471,-1000.0,0.00022449,3]
[315913769,1709279667500,-1000.0,0.00022449,3]
[315913770,1709279667527,-1000.0,0.00022449,3]
[315913771,1709279667552,-3270.47121094,0.00022449,3]
[315913772,1709279667579,-1000.0,0.00022449,3]
[315913773,1709279667605,-1000.0,0.00022449,3]
[315913774,1709279667630,-8788.95786854,0.00022449,3]
[315913775,1709279667658,-3955.03104084,0.00022449,3]
[315913776,1709279667685,-1000.0,0.00022449,3]
[315913777,1709279667711,-1000.0,0.00022449,3]
[315913778,1709279667739,-2934.52685515,0.00022449,3]
[315913779,1709279667765,-1000.0,0.00022449,3]
[315913780,1709279667792,-7031.01348701,0.00022449,3]
[315913781,1709279667818,-1000.0,0.00022449,3]
[315913782,1709279667844,-1000.0,0.00022449,3]
[315913783,1709279667870,-151.0,0.00022449,7]
[315913784,1709279667898,-1000.0,0.00022449,3]
[315913785,1709279667924,-1000.0,0.00022449,3]
[315913786,1709279667949,-203.311255,0.00022449,7]
[315913787,1709279667975,-203.311255,0.00022449,7]
[315913788,1709279668000,-207.016081,0.00022449,7]
[315913789,1709279668025,-207.016081,0.00022449,7]
[315913790,1709279668056,-230.902294,0.00022449,2]
[315913791,1709279668083,-230.902294,0.00022449,2]
[315913792,1709279668111,-1000.0,0.00022449,3]
[315913793,1709279668138,-5181.25007834,0.00022449,3]
[315913794,1709279668166,-1000.0,0.00022449,3]
[315913795,1709279668193,-1000.0,0.00022449,3]
[315913796,1709279668223,-4534.96690566,0.00022449,3]
[315913797,1709279668249,-1000.0,0.00022449,3]
[315913798,1709279668278,-50000.0,0.0002246,2]
[315913799,1709279668304,-62581.9450446,0.00022461,2]
[315913800,1709279668329,-7052.122264,0.00022461,2]
[315913801,1709279668356,-3000.0,0.00022463,7]
[315913802,1709279668383,-500.0,0.00022465,2]
[315913803,1709279668410,-1407.41,0.00022465,2]
[315913804,1709279668435,-232.97750993,0.00022465,2]
[315913805,1709279668459,-500.0,0.00022465,2]
[315913806,1709279668489,-500.0,0.00022465,2]
[315913807,1709279668514,-500.0,0.00022465,2]
[315913808,1709279668539,-570.9463311,0.00022465,2]
[315913809,1709279668565,-500.0,0.00022465,2]
[315913810,1709279668591,-500.0,0.00022465,2]
[315913811,1709279668618,-500.0,0.00022465,2]
[315913812,1709279668644,-500.0,0.00022465,2]
[315913813,1709279668672,-500.0,0.00022465,2]
[315913814,1709279668972,-500.0,0.00022465,2]
[315913815,1709279669011,-506.73885876,0.00022465,2]
[315913816,1709279669037,-500.0,0.00022465,2]
[315913817,1709279669063,-500.0,0.00022465,2]
[315913818,1709279669269,-500.0,0.00022465,2]
[315913819,1709279669299,-500.0,0.00022465,2]
[315913820,1709279669334,-500.0,0.00022465,2]
[315913821,1709279669365,-500.0,0.00022465,2]
[315913822,1709279669395,-500.0,0.00022465,2]
[315913823,1709279669422,-500.0,0.00022465,2]
[315913824,1709279669447,-500.0,0.00022465,2]
[315913825,1709279669476,-892.46,0.00022465,2]
[315913826,1709279669501,-500.0,0.00022465,2]
[315913827,1709279669525,-500.0,0.00022465,2]
[315913828,1709279669551,-500.0,0.00022465,2]
[315913829,1709279669581,-584.32839831,0.00022465,2]
[315913830,1709279669608,-500.0,0.00022465,2]
[315913831,1709279669635,-500.0,0.00022465,2]
[315913832,1709279669660,-500.0,0.00022465,2]
[315913833,1709279669690,-515.52947884,0.00022465,2]
[315913834,1709279669719,-500.0,0.00022465,2]
[315913835,1709279669747,-500.0,0.00022465,2]
[315913836,1709279669783,-503.67535707,0.00022465,2]
[315913837,1709279669816,-500.0,0.00022465,2]
[315913838,1709279669842,-500.0,0.00022465,2]
[315913839,1709279669869,-514.50459537,0.00022465,2]
[315913840,1709279669906,-500.0,0.00022465,2]
[315913841,1709279669936,-500.0,0.00022465,2]
[315913842,1709279669963,-500.0,0.00022465,2]
[315913843,1709279669992,-500.0,0.00022465,2]
[315913844,1709279670017,-500.0,0.00022465,2]
[315913845,1709279670043,-500.0,0.00022465,2]
[315913846,1709279670069,-500.0,0.00022465,2]
[315913847,1709279670095,-536.96,0.00022465,2]
[315913848,1709279670122,-500.0,0.00022465,2]
[315913849,1709279670147,-500.0,0.00022465,2]
[315913850,1709279670172,-500.0,0.00022465,2]
[315913851,1709279670198,-500.0,0.00022465,2]
[315913852,1709279670224,-345.50599877,0.00022465,2]
[315913853,1709279670249,-500.0,0.00022465,2]
[315913854,1709279670275,-500.0,0.00022465,2]
[315913855,1709279670301,-500.0,0.00022465,2]
[315913856,1709279670327,-500.0,0.00022465,2]
[315913857,1709279670353,-500.0,0.00022465,2]
[315913858,1709279670378,-500.0,0.00022465,2]
[315913859,1709279670403,-514.41901089,0.00022465,2]
[315913860,1709279670428,-269.83073915,0.00022465,2]
[315913861,1709279670454,-500.0,0.00022465,2]
[315913862,1709279670484,-500.0,0.00022465,2]
[315913863,1709279670509,-500.0,0.00022465,2]
[315913864,1709279670535,-500.0,0.00022465,2]
[315913865,1709279670561,-1483.25,0.00022465,2]
[315913866,1709279670588,-500.0,0.00022465,2]
[315913867,1709279670614,-500.0,0.00022465,2]
[315913868,1709279670641,-500.0,0.00022465,2]
[315913869,1709279670669,-614.4177298,0.00022465,2]
[315913870,1709279670695,-500.0,0.00022465,2]
[315913871,1709279670722,-500.0,0.00022465,2]
[315913872,1709279670747,-500.0,0.00022465,2]
[315913873,1709279670773,-227.99030447,0.00022465,2]
[315913874,1709279670800,-500.0,0.00022465,2]
[315913875,1709279670827,-193.19760379,0.00022465,2]
[315913876,1709279670853,-500.0,0.00022465,2]
[315913877,1709279670879,-500.0,0.00022465,2]
[315913878,1709279670905,-500.0,0.00022465,2]
[315913879,1709279670931,-500.0,0.00022465,2]
[315913880,1709279670958,-764.98,0.00022465,2]
[315913881,1709279670984,-616.65,0.00022465,2]
[315913882,1709279671009,-632.98,0.00022465,2]
[315913883,1709279671035,-500.0,0.00022465,2]
[315913884,1709279671063,-500.0,0.00022465,2]
[315913885,1709279671091,-730.96,0.00022465,2]
[315913886,1709279671117,-500.0,0.00022465,2]
[315913887,1709279671142,-500.0,0.00022465,2]
[315913888,1709279671168,-894.52,0.00022465,2]
[315913889,1709279671193,-500.0,0.00022465,2]
[315913890,1709279671220,-500.0,0.00022465,2]
[315913891,1709279671245,-547.96,0.00022465,2]
[315913892,1709279671272,-500.0,0.00022465,2]
[315913893,1709279671297,-500.0,0.00022465,2]
[315913894,1709279671325,-500.0,0.00022465,2]
[315913895,1709279671350,-500.0,0.00022465,2]
[315913896,1709279671381,-500.0,0.00022465,2]
[315913897,1709279671407,-500.0,0.00022465,2]
[315913898,1709279671434,-500.0,0.00022465,2]
[315913899,1709279671460,-500.0,0.00022465,2]
[315913900,1709279671492,-500.0,0.00022465,2]
[315913901,1709279671518,-500.0,0.00022465,2]
[315913902,1709279671545,-500.0,0.00022465,2]
[315913903,1709279671572,-586.21,0.00022465,2]
[315913904,1709279671602,-500.0,0.00022465,2]
[315913905,1709279671628,-629.82,0.00022465,2]
[315913906,1709279671653,-500.0,0.00022465,2]
[315913907,1709279671679,-500.0,0.00022465,2]
[315913908,1709279671706,-500.0,0.00022465,2]
[315913909,1709279671734,-954.35,0.00022465,2]
[315913910,1709279671835,-727.15,0.00022465,2]
[315913911,1709279671859,-500.0,0.00022465,2]
[315913912,1709279671884,-500.0,0.00022465,2]
[315913913,1709279671909,-500.0,0.00022465,2]
[315913914,1709279671933,-500.0,0.00022465,2]
[315913915,1709279671958,-663.05,0.00022465,2]
[315913916,1709279671984,-500.0,0.00022465,2]
[315913917,1709279672009,-500.0,0.00022465,2]
[315913918,1709279672033,-500.0,0.00022465,2]
[315913919,1709279672057,-500.0,0.00022465,2]
[315913920,1709279672081,-500.0,0.00022465,2]
[315913921,1709279672106,-500.0,0.00022465,2]
[315913922,1709279672130,-542.47,0.00022465,2]
[315913923,1709279672154,-622.93,0.00022465,2]
[315913924,1709279672178,-772.89,0.00022465,2]
[315913925,1709279672202,-709.98,0.00022465,2]
[315913926,1709279672226,-188.64638377,0.00022465,2]
[315913927,1709279672251,-500.0,0.00022465,2]
[315913928,1709279672275,-602.42,0.00022465,2]
[315913929,1709279672299,-500.0,0.00022465,2]
[315913930,1709279672323,-500.0,0.00022465,2]
[315913931,1709279672347,-500.0,0.00022465,2]
[315913932,1709279672374,-500.0,0.00022465,2]
[315913933,1709279672399,-874.92,0.00022465,2]
[315913934,1709279672425,-500.0,0.00022465,2]
[315913935,1709279672449,-500.0,0.00022465,2]
[315913936,1709279672475,-500.0,0.00022465,2]
[315913937,1709279672500,-500.0,0.00022465,2]
[315913938,1709279672530,-500.0,0.00022465,2]
[315913939,1709279672555,-500.0,0.00022465,2]
[315913940,1709279672580,-500.0,0.00022465,2]
[315913941,1709279672605,-500.0,0.00022465,2]
[315913942,1709279672630,-981.45,0.00022465,2]
[315913943,1709279672654,-500.0,0.00022465,2]
[315913944,1709279672679,-500.0,0.00022465,2]
[315913945,1709279672703,-500.0,0.00022465,2]
[315913946,1709279672727,-619.93,0.00022465,2]
[315913947,1709279672751,-500.0,0.00022465,2]
[315913948,1709279672777,-663.86,0.00022465,2]
[315913949,1709279672802,-500.0,0.00022465,2]
[315913950,1709279672829,-500.0,0.00022465,2]
[315913951,1709279672853,-500.0,0.00022465,2]
[315913952,1709279672878,-500.0,0.00022465,2]
[315913953,1709279672905,-554.46,0.00022465,2]
[315913954,1709279672930,-500.0,0.00022465,2]
[315913955,1709279672953,-500.0,0.00022465,2]
[315913956,1709279672979,-500.0,0.00022465,2]
[315913957,1709279673005,-500.0,0.00022465,2]
[315913958,1709279673032,-500.0,0.00022465,2]
[315913959,1709279673061,-1183.0,0.00022465,2]
[315913960,1709279673087,-500.0,0.00022465,2]
[315913961,1709279673113,-840.01,0.00022465,2]
[315913962,1709279673137,-500.0,0.00022465,2]
[315913963,1709279673163,-500.0,0.00022465,2]
[315913964,1709279673189,-500.0,0.00022465,2]
[315913965,1709279673215,-500.0,0.00022465,2]
[315913966,1709279673242,-712.74,0.00022465,2]
[315913967,1709279673267,-500.0,0.00022465,2]
[315913968,1709279673293,-554.67,0.00022465,2]
[315913969,1709279673319,-500.0,0.00022465,2]
[315913970,1709279673345,-500.0,0.00022465,2]
[315913971,1709279673369,-500.0,0.00022465,2]
[315913972,1709279673396,-500.0,0.00022465,2]
[315913973,1709279673422,-704.78,0.00022465,2]
[315913974,1709279673447,-500.0,0.00022465,2]
[315913975,1709279673472,-500.0,0.00022465,2]
[315913976,1709279673498,-500.0,0.00022465,2]
[315913977,1709279673525,-345.73289471,0.00022465,2]
[315913978,1709279673550,-500.0,0.00022465,2]
[315913979,1709279673576,-500.0,0.00022465,2]
[315913980,1709279673601,-863.29,0.00022465,2]
[315913981,1709279673626,-500.0,0.00022465,2]
[315913982,1709279673651,-500.0,0.00022465,2]
[315913983,1709279673678,-500.0,0.00022465,2]
[315913984,1709279673706,-500.0,0.00022465,2]
[315913985,1709279673733,-662.95,0.00022465,2]
[315913986,1709279673760,-500.0,0.00022465,2]
[315913987,1709279673785,-500.0,0.00022465,2]
[315913988,1709279673811,-729.03,0.00022465,2]
[315913989,1709279673840,-500.0,0.00022465,2]
[315913990,1709279673865,-500.0,0.00022465,2]
[315913991,1709279673889,-500.0,0.00022465,2]
[315913992,1709279673917,-500.0,0.00022465,2]
[315913993,1709279673941,-500.0,0.00022465,2]
[315913994,1709279673965,-500.0,0.00022465,2]
[315913995,1709279673991,-500.0,0.00022465,2]
[315913996,1709279674016,-500.0,0.00022465,2]
[315913997,1709279674040,-500.0,0.00022465,2]
[315913998,1709279674065,-500.0,0.00022465,2]
[315913999,1709279674091,-500.0,0.00022465,2]
[315914000,1709279674116,-500.0,0.00022465,2]
[315914001,1709279674141,-500.0,0.00022465,2]
[315914002,1709279674165,-500.0,0.00022465,2]
[315914003,1709279674189,-500.0,0.00022465,2]
[315914004,1709279674213,-500.0,0.00022465,2]
[315914005,1709279674238,-579.62,0.00022465,2]
[315914006,1709279674262,-500.0,0.00022465,2]
[315914007,1709279674287,-500.0,0.00022465,2]
[315914008,1709279674311,-500.0,0.00022465,2]
[315914009,1709279674337,-934.6,0.00022465,2]
[315914010,1709279674361,-500.0,0.00022465,2]
[315914011,1709279674386,-500.0,0.00022465,2]
[315914012,1709279674413,-1084.05,0.00022465,2]
[315914013,1709279674437,-500.0,0.00022465,2]
[315914014,1709279674461,-500.0,0.00022465,2]
[315914015,1709279674489,-890.16,0.00022465,2]
[315914016,1709279674518,-787.94,0.00022465,2]
[315914017,1709279674545,-500.0,0.00022465,2]
[315914018,1709279674571,-500.0,0.00022465,2]
[315914019,1709279674596,-208.80639,0.00022465,7]
[315914020,1709279674621,-500.0,0.00022465,2]
[315914021,1709279674646,-500.0,0.00022465,2]
[315914022,1709279674671,-512.18,0.00022465,2]
[315914023,1709279674697,-500.0,0.00022465,2]
[315914024,1709279674722,-500.0,0.00022465,2]
[315914025,1709279674747,-500.0,0.00022465,2]
[315914026,1709279674772,-663.42,0.00022465,2]
[315914027,1709279674797,-500.0,0.00022465,2]
[315914028,1709279674830,-500.0,0.00022465,2]
[315914029,1709279674854,-500.0,0.00022465,2]
[315914030,1709279674879,-500.0,0.00022465,2]
[315914031,1709279674905,-500.0,0.00022465,2]
[315914032,1709279674931,-500.0,0.00022465,2]
[315914033,1709279674956,-500.0,0.00022465,2]
[315914034,1709279674981,-500.0,0.00022465,2]
[315914035,1709279675006,-500.0,0.00022465,2]
[315914036,1709279675032,-500.0,0.00022465,2]
[315914037,1709279675057,-500.0,0.00022465,2]
[315914038,1709279675084,-500.0,0.00022465,2]
[315914039,1709279675111,-500.0,0.00022465,2]
[315914040,1709279675138,-500.0,0.00022465,2]
[315914041,1709279675164,-782.41,0.00022465,2]
[315914042,1709279675189,-1321.96,0.00022465,2]
[315914043,1709279675215,-500.0,0.00022465,2]
[315914044,1709279675242,-500.0,0.00022465,2]
[315914045,1709279675268,-500.0,0.00022465,2]
[315914046,1709279675295,-500.0,0.00022465,2]
[315914047,1709279675321,-500.0,0.00022465,2]
[315914048,1709279675347,-500.0,0.00022465,2]
[315914049,1709279675376,-203.87317427,0.00022465,2]
[315914050,1709279675403,-500.0,0.00022465,2]
[315914051,1709279675439,-508.1,0.00022465,2]
[315914052,1709279675467,-659.51,0.00022465,2]
[315914053,1709279675495,-500.0,0.00022465,2]
[315914054,1709279675523,-500.0,0.00022465,2]
[315914055,1709279675549,-500.0,0.00022465,2]
[315914056,1709279675577,-511.66,0.00022465,2]
[315914057,1709279675605,-203.311255,0.00022465,7]
[315914058,1709279675633,-500.0,0.00022465,2]
[315914059,1709279675660,-912.43,0.00022465,2]
[315914060,1709279675687,-203.311259,0.00022465,7]
[315914061,1709279675714,-500.0,0.00022465,2]
[315914062,1709279675909,-500.0,0.00022465,2]
[315914063,1709279675936,-207.016081,0.00022465,7]
[315914064,1709279675964,-500.0,0.00022465,2]
[315914065,1709279675993,-542.73,0.00022465,2]
[315914066,1709279676037,-500.0,0.00022465,2]
[315914067,1709279676065,-207.016085,0.00022465,7]
[315914068,1709279676092,-514.32712334,0.00022465,2]
[315914069,1709279676117,-230.902294,0.00022465,2]
[315914070,1709279676144,-500.0,0.00022465,2]
[315914071,1709279676171,-559.33,0.00022465,2]
[315914072,1709279676204,-525.98,0.00022465,2]
[315914073,1709279676233,-500.0,0.00022465,2]
[315914074,1709279676262,-500.0,0.00022465,2]
[315914075,1709279676290,-230.902288,0.00022465,2]
[315914076,1709279676316,-500.0,0.00022465,2]
[315914077,1709279676341,-797.42,0.00022465,2]
[315914078,1709279676367,-500.0,0.00022465,2]
[315914079,1709279676393,-500.0,0.00022465,2]
[315914080,1709279676418,-658.86,0.00022465,2]
[315914081,1709279676443,-500.0,0.00022465,2]
[315914082,1709279676469,-500.0,0.00022465,2]
[315914083,1709279676495,-500.0,0.00022465,2]
[315914084,1709279676520,-636.83,0.00022465,2]
[315914085,1709279676547,-500.0,0.00022465,2]
[315914086,1709279676574,-500.0,0.00022465,2]
[315914087,1709279676602,-533.12506444,0.00022465,2]
[315914088,1709279676631,-500.0,0.00022465,2]
[315914089,1709279676658,-500.0,0.00022465,2]
[315914090,1709279676685,-500.0,0.00022465,2]
[315914091,1709279676710,-500.0,0.00022465,2]
[315914092,1709279676740,-886.45,0.00022465,2]
[315914093,1709279676766,-480.47039063,0.00022465,2]
[315914094,1709279676792,-749.33,0.00022465,2]
[315914095,1709279676821,-529.5,0.00022465,2]
[315914096,1709279676848,-500.0,0.00022465,2]
[315914097,1709279676875,-2205.39,0.00022465,2]
[315914098,1709279676903,-2802.5,0.00022465,2]
[315914099,1709279676930,-500.0,0.00022465,2]
[315914100,1709279676956,-787.23,0.00022465,2]
[315914101,1709279676985,-500.0,0.00022465,2]
[315914102,1709279677012,-500.0,0.00022465,2]
[315914103,1709279677039,-500.0,0.00022465,2]
[315914104,1709279677065,-5486.02,0.00022465,2]
[315914105,1709279677092,-7323.22,0.00022465,2]
[315914106,1709279677117,-945.15,0.00022465,2]
[315914107,1709279677142,-500.0,0.00022465,2]
[315914108,1709279677166,-590.56,0.00022465,2]
[315914109,1709279677191,-500.0,0.00022465,2]
[315914110,1709279677218,-9376.71,0.00022465,2]
[315914111,1709279677246,-500.0,0.00022465,2]
[315914112,1709279677271,-900.24,0.00022465,2]
[315914113,1709279677298,-1137.08,0.00022465,2]
[315914114,1709279677323,-936.29,0.00022465,2]
[315914115,1709279677348,-500.0,0.00022465,2]
[315914116,1709279677374,-500.0,0.00022465,2]
[315914117,1709279677399,-503.78,0.00022465,2]
[315914118,1709279677425,-500.0,0.00022465,2]
[315914119,1709279677451,-531.4,0.00022465,2]
[315914120,1709279677478,-1074.98,0.00022465,2]
[315914121,1709279677505,-1129.33,0.00022465,2]
[315914122,1709279677530,-1104.94,0.00022465,2]
[315914123,1709279677555,-500.0,0.00022465,2]
[315914124,1709279677581,-683.62,0.00022465,2]
[315914125,1709279677606,-593.43,0.00022465,2]
[315914126,1709279677634,-992.3,0.00022465,2]
[315914127,1709279677660,-500.0,0.00022465,2]
[315914128,1709279677685,-764.5,0.00022465,2]
[315914129,1709279677710,-2047.31,0.00022465,2]
[315914130,1709279677735,-500.0,0.00022465,2]
[315914131,1709279677760,-500.0,0.00022465,2]
[315914132,1709279677786,-3502.68,0.00022465,2]
[315914133,1709279677813,-5515.3,0.00022465,2]
[315914134,1709279677841,-500.0,0.00022465,2]
[315914135,1709279677866,-500.0,0.00022465,2]
[315914136,1709279677893,-1124.08,0.00022465,2]
[315914137,1709279677919,-500.0,0.00022465,2]
[315914138,1709279677944,-500.0,0.00022465,2]
[315914139,1709279677969,-518.78,0.00022465,2]
[315914140,1709279677996,-500.0,0.00022465,2]
[315914141,1709279678021,-531.51,0.00022465,2]
[315914142,1709279678046,-947.5,0.00022465,2]
[315914143,1709279678072,-500.0,0.00022465,2]
[315914144,1709279678098,-2379.42,0.00022465,2]
[315914145,1709279678127,-1083.57,0.00022465,2]
[315914146,1709279678153,-920.9,0.00022465,2]
[315914147,1709279678179,-518.19291547,0.00022465,2]
[315914148,1709279678206,-500.0,0.00022465,2]
[315914149,1709279678239,-500.0,0.00022465,2]
[315914150,1709279678269,-1033.54,0.00022465,2]
[315914151,1709279678297,-1171.85,0.00022465,2]
[315914152,1709279678323,-2028.42,0.00022465,2]
[315914153,1709279678348,-500.0,0.00022465,2]
[315914154,1709279678373,-1671.52,0.00022465,2]
[315914155,1709279678398,-1877.22,0.00022465,2]
[315914156,1709279678422,-500.0,0.00022465,2]
[315914157,1709279678447,-740.79,0.00022465,2]
[315914158,1709279678475,-500.0,0.00022465,2]
[315914159,1709279678500,-590.14,0.00022465,2]
[315914160,1709279678525,-500.0,0.00022465,2]
[315914161,1709279678550,-1036.62,0.00022465,2]
[315914162,1709279678575,-500.0,0.00022465,2]
[315914163,1709279678601,-500.0,0.00022465,2]
[315914164,1709279678629,-500.0,0.00022465,2]
[315914165,1709279678654,-1081.84,0.00022465,2]
[315914166,1709279678680,-500.0,0.00022465,2]
[315914167,1709279678986,-500.0,0.00022465,2]
[315914168,1709279679022,-2615.4,0.00022465,2]
[315914169,1709279679049,-500.0,0.00022465,2]
[315914170,1709279679074,-597.69,0.00022465,2]
[315914171,1709279679100,-500.0,0.00022465,2]
[315914172,1709279679126,-2257.43,0.00022465,2]
[315914173,1709279679151,-500.0,0.00022465,2]
[315914174,1709279679176,-500.0,0.00022465,2]
[315914175,1709279679202,-1108.37,0.00022465,2]
[315914176,1709279679229,-1296.39,0.00022465,2]
[315914177,1709279679254,-573.72,0.00022465,2]
[315914178,1709279679279,-500.0,0.00022465,2]
[315914179,1709279679307,-1708.79,0.00022465,2]
[315914180,1709279679332,-840.75,0.00022465,2]
[315914181,1709279679361,-1092.57,0.00022465,2]
[315914182,1709279679388,-500.0,0.00022465,2]
[315914183,1709279679415,-1105.64,0.00022465,2]
[315914184,1709279679443,-4719.58,0.00022465,2]
[315914185,1709279679474,-508.27480323,0.00022465,2]
[315914186,1709279679500,-1169.77,0.00022465,2]
[315914187,1709279679526,-738.31,0.00022465,2]
[315914188,1709279679551,-500.0,0.00022465,2]
[315914189,1709279679577,-746.5,0.00022465,2]
[315914190,1709279679602,-1085.49,0.00022465,2]
[315914191,1709279679629,-639.83,0.00022465,2]
[315914192,1709279679655,-1152.1,0.00022465,2]
[315914193,1709279679682,-500.0,0.00022465,2]
[315914194,1709279679708,-2178.66,0.00022465,2]
[315914195,1709279679735,-813.55,0.00022465,2]
[315914196,1709279679761,-1912.06,0.00022465,2]
[315914197,1709279679787,-500.0,0.00022465,2]
[315914198,1709279679816,-510.75,0.00022465,2]
[315914199,1709279679843,-500.0,0.00022465,2]
[315914200,1709279679871,-500.0,0.00022465,2]
[315914201,1709279679898,-771.97,0.00022465,2]
[315914202,1709279679925,-500.0,0.00022465,2]
[315914203,1709279679953,-500.0,0.00022465,2]
[315914204,1709279679980,-500.0,0.00022465,2]
[315914205,1709279680008,-11840.92,0.00022465,2]
[315914206,1709279680033,-500.0,0.00022465,2]
[315914207,1709279680059,-500.0,0.00022465,2]
[315914208,1709279680086,-500.0,0.00022465,2]